Cogmind - Beta 13 @@@ ROGUE MODE // 2024.04.03 @ 20:23:13 Player: AndK Result: Destroyed by Y-45 Defender with Beam Rifle Performance ------------- Evolutions (1) 500 Regions Visited (4) 800 Robots Destroyed (58) 290 Value Destroyed (1494) 1494 Prototype IDs (1) 20 Alien Tech Used (0) 0 Bonus (0) 0 TOTAL SCORE: 3104 Bonus ------- None Cogmind --------- Core Integrity 0/400 Matter 148/300 Energy 125/125 System Corruption 2% Temperature Cool (9) Movement Walking (260) Ox2 Location -9/Storage Parts ------- > --- POWER (1) -------- Light Ion Engine (fused) > --- PROPULSION (2) --- Aluminum Leg > --- UTILITY (4) ------ Large Storage Unit > --- WEAPON (2) ------- Grenade Launcher Heavy Hammer > --- INVENTORY (15) --- Bomb Drone Bay (16/16) Medium Laser Autogun Light Cannon Light Cannon Light Cannon Peak State ------------ > --- POWER ------------ Ion Engine > --- PROPULSION ------- Aluminum Leg Aluminum Leg > --- UTILITY ---------- Large Storage Unit Light Armor Plating Bomb Drone Bay > --- WEAPON ----------- Medium Laser Grenade Launcher > --- INVENTORY -------- Ion Engine Light Ion Engine Combat Airjet Autogun Autogun Light Cannon Light Cannon Light Cannon Grenade Launcher Rocket Launcher Maul Maul [Rating: 23] Favorites ----------- Power Ion Engine Engine Ion Engine Propulsion Aluminum Leg Leg Aluminum Leg Hover Unit Backup Propulsion I Utility Large Storage Unit Device High-powered Tractor Beam Storage Large Storage Unit Processor Terrain Scan Processor Protection Medium Armor Plating Weapon Heavy Hammer Energy Gun Medium Laser Ballistic Gun Autogun Launcher Grenade Launcher Impact Weapon Heavy Hammer Build | -11 -10 -10 -9 -9 ------- Run | Yrd Mat Min Mat Sto Slots Evolved 2 | . . . 2 . Power . | . . . . . Propulsion . | . . . . . Utility 2 | . . . 2 . Weapon . | . . . . . Parts Attached 41 | 6 8 2 12 13 Power 7 | 1 1 . 1 4 Engine 7 | 1 1 . 1 4 Core . | . . . . . Reactor . | . . . . . Propulsion 12 | 2 3 1 4 2 Treads . | . . . . . Leg 12 | 2 3 1 4 2 Wheel . | . . . . . Hover . | . . . . . Flight . | . . . . . Utility 12 | 1 2 1 3 5 Device 4 | . 1 . 2 1 Storage 2 | 1 1 . . . Processor 1 | . . . . 1 Hackware . | . . . . . Protection 5 | . . 1 1 3 Artifact . | . . . . . Weapon 10 | 2 2 . 4 2 Energy Gun 2 | 1 1 . . . Energy Cannon . | . . . . . Ballistic Gun 2 | 1 . . 1 . Ballistic Cannon . | . . . . . Launcher 3 | . 1 . . 2 Special Weapon . | . . . . . Impact Weapon 3 | . . . 3 . Slashing Weapon . | . . . . . Piercing Weapon . | . . . . . Special Melee Weapon . | . . . . . Unidentified Prototypes 1 | . . . 1 . Parts Lost 18 | . 2 1 3 12 Power 5 | . 1 . 1 3 Propulsion 5 | . . 1 1 3 Utility 5 | . . . 1 4 Weapon 3 | . 1 . . 2 Highest Loss Streak 4 | . 1 1 1 4 To Critical Strikes . | . . . . . Average Slot Usage (%) 89 | . 96 98 76 89 Engine 10 | . 13 14 11 7 Leg 23 | . 27 27 17 21 Device 7 | . 11 3 6 9 Storage 12 | . 14 14 11 11 Processor 1 | . . . . 5 Protection 9 | . . 10 8 14 Energy Gun 5 | . 13 14 . . Ballistic Gun 6 | . 11 . 10 4 Launcher 5 | . 2 14 . 5 Impact Weapon 6 | . . . 11 11 Naked Turns . | . . . . . Heaviest Build 54 | 11 31 33 37 54 Greatest Support 20 | 20 20 20 20 20 Greatest Overweight (x) 11 | 2 5 3 11 3 Average Overweight (x) 1 | . . 1 1 1 Largest Inventory Capacity 15 | 8 15 15 15 15 Average Capacity 14 | 7 13 15 15 15 Most Carried 15 | 5 15 14 15 14 Average Carried 11 | 2 9 13 13 10 Final Capacity 15 | 8 15 15 15 15 Final Carried 14 | 4 13 14 14 7 Class Distribution -------------------- 100% | Mutant Dominant Class ---------------- Mutant | -10/Materials Mutant | -10/Mines Mutant | -9/Materials Mutant | -9/Storage Resources | -11 -10 -10 -9 -9 ----------- Run | Yrd Mat Min Mat Sto Matter Collected 1003 | 217 153 128 247 258 Remotely 170 | . . . 81 89 Salvage Created 1509 | . 426 82 416 585 Parts 123 | . 39 16 32 36 Haulers Intercepted 1 | . . . . 1 Recyclers Shooed 1 | . 1 . . . Parts Field Recycled . | . . . . . Retrieved Matter . | . . . . . Parts Self-Destructed . | . . . . . Prevented . | . . . . . Kills | -11 -10 -10 -9 -9 ------- Run | Yrd Mat Min Mat Sto Combat Hostiles Destroyed 47 | . 10 8 12 17 Melee 7 | . . . 3 4 Guns 15 | . 6 1 8 . AOE 19 | . 4 7 . 8 Classes Destroyed 10 | . 3 2 2 3 Worker 1 | . . . . 1 Builder 1 | . 1 . . . Tunneler 1 | . . . 1 . Hauler 1 | . . . . 1 Recycler 1 | . . . . 1 Watcher 6 | . 3 . 3 . Swarmer 15 | . . 5 6 4 Grunt 24 | . 10 2 5 7 Sentry 7 | . . . 1 6 Demolisher 1 | . . 1 . . Best Kill Streak 9 | . 4 3 9 9 Combat Bots Only 6 | . 4 3 6 6 Max Kills in Single Turn 3 | . 2 2 1 3 Gunslinging 1 | . 1 . . . Exploded 3 | . 2 2 . 3 Melee 1 | . . . 1 1 Uniques/NPCs Destroyed . | . . . . . Combat | -11 -10 -10 -9 -9 -------- Run | Yrd Mat Min Mat Sto Hostile Shots Fired 302 | . 48 20 94 140 Missed 79 | . 15 5 22 37 Damage Taken 2931 | . 370 203 690 1668 Core 508 | . 60 39 138 271 Absorbed by Shields . | . . . . . Regen/Repaired (Parts) 34 | . 34 . . . Core Remaining (%) 80 | 100 . 60 . . Volleys Fired 111 | . 37 9 38 27 Largest 2 | . 2 2 1 1 Hottest 80 | . 80 80 23 33 Shots Fired 153 | . 71 17 38 27 Gun 115 | . 67 9 38 1 Cannon . | . . . . . Launcher 38 | . 4 8 . 26 Special . | . . . . . Kinetic 72 | . 33 . 38 1 Thermal 26 | . 17 9 . . Explosive 38 | . 4 8 . 26 Electromagnetic 17 | . 17 . . . Robot Hit Streak 10 | . 10 10 10 4 Robot Miss Streak 3 | . 3 1 2 2 Penetration Max . | . . . . . Secondary Targets 1 | . 1 . . . Max Gunslinging Chain 1 | . 1 . . . Shots Hit Robots 127 | . 44 8 37 38 Core Hits 80 | . 27 11 17 25 Critical Kills . | . . . . . Critical Parts Destroyed 7 | . . . 4 3 Critical Strikes 7 | . . . 4 3 Smash 7 | . . . 4 3 Melee Attacks 51 | . . . 16 35 Impact 51 | . . . 16 35 Slashing . | . . . . . Piercing . | . . . . . Sneak Attacks 1 | . . . 1 . Combat Hostiles . | . . . . . Follow-up Attacks 2 | . . . 2 . Damage Inflicted 3944 | . 837 463 884 1760 Guns 975 | . 492 50 433 . Cannons . | . . . . . Explosions 1492 | . 345 413 . 734 Melee 1477 | . . . 451 1026 Ramming . | . . . . . Kinetic 611 | . 178 . 433 . Thermal 226 | . 176 50 . . Explosive 1492 | . 345 413 . 734 Electromagnetic 138 | . 138 . . . Impact 1477 | . . . 451 1026 Slashing . | . . . . . Piercing . | . . . . . Highest Corruption 2 | . . . 1 2 Average Corruption 1 | . . . 1 1 Corruption Purged . | . . . . . Corruption Blocked . | . . . . . Effects 18 | . . . 4 14 Message Errors 4 | . . . 1 3 Matter Fused 3 | . . . . 3 Heat Flow Errors 1 | . . . . 1 Energy Discharges 3 | . . . 2 1 Parts Fused 1 | . . . . 1 Data Loss (minor) 5 | . . . 1 4 Data Loss (major) 1 | . . . . 1 Overload Shots . | . . . . . Overflow Damage 501 | . . 8 242 251 Projectiles . | . . . . . Explosions 72 | . . 8 . 64 Melee 429 | . . . 242 187 Knockbacks 7 | . . . 4 3 Impact 7 | . . . 4 3 Kinetic . | . . . . . Secondary . | . . . . . Self-Inflicted Damage 331 | . 11 34 . 286 Shots 14 | . 1 3 . 10 Rammed . | . . . . . Targets Rammed . | . . . . . Kicked . | . . . . . Crushed . | . . . . . Highest Temperature 173 | . 38 43 10 173 Average Temperature 19 | . 14 19 6 33 Received Heat Transfer 990 | . 198 45 159 588 Siege Activations . | . . . . . Robots Corrupted . | . . . . . Combat Hostiles . | . . . . . Parts Fried 7 | . . . 2 5 Impact Corruptions 17 | . . . 10 7 Robots Melted . | . . . . . Combat Hostiles . | . . . . . Parts Melted 2 | . 1 1 . . Heat Transferred 666 | . 518 148 . . Parts Sabotaged . | . . . . . Parts Stolen . | . . . . . Parts Stripped . | . . . . . Power Chain Reactions . | . . . . . Alert | -11 -10 -10 -9 -9 ------- Run | Yrd Mat Min Mat Sto Peak Influence 325 | . 258 232 325 313 Initial 42 | . . 42 . 25 Average 109 | . 88 106 102 132 Maximum Alert Level 1 | . 1 1 1 1 Low Security (%) 81 | 100 94 86 92 64 Level 1 18 | . 5 13 7 35 Level 2 . | . . . . . Level 3 . | . . . . . Level 4 . | . . . . . Level 5 . | . . . . . High Security . | . . . . . Max Security . | . . . . . Squads Dispatched 10 | . 5 . 3 2 Investigation 2 | . 1 . 1 . Extermination . | . . . . . Reinforcement 8 | . 4 . 2 2 Assault . | . . . . . Garrison . | . . . . . Intercept . | . . . . . Searches Triggered . | . . . . . Construction Impeded 1 | . . . . 1 Haulers Reinforced . | . . . . . Active Scanning Responses . | . . . . . Cargo Convoy Interrupts . | . . . . . Stealth | -11 -10 -10 -9 -9 --------- Run | Yrd Mat Min Mat Sto Distress Signals 2 | . . . 1 1 Communications Jammed . | . . . . . Distress Signals . | . . . . . Times Spotted 76 | . 20 9 23 24 Peak Tracking Total 7 | . 5 3 7 6 Tactical Retreats 6 | . 1 . 2 3 Traps | -11 -10 -10 -9 -9 ------- Run | Yrd Mat Min Mat Sto Traps Triggered 4 | . 1 . . 3 Indirectly . | . . . . . Trap Hack Attempts . | . . . . . Triggered . | . . . . . Disarmed . | . . . . . Reprogrammed . | . . . . . Reused . | . . . . . Traps Extracted . | . . . . . Installed . | . . . . . Triggered . | . . . . . Machines | -11 -10 -10 -9 -9 ---------- Run | Yrd Mat Min Mat Sto Machines Disabled 3 | . . . 1 2 Max in Single Turn 1 | . . . 1 1 Machines Repaired . | . . . . . Machines Dismantled . | . . . . . Machines Sabotaged . | . . . . . Overloaded Fab Kills . | . . . . . Hacking | -11 -10 -10 -9 -9 --------- Run | Yrd Mat Min Mat Sto Machines Accessed 10 | . 4 1 2 3 Terminals 7 | . 3 . 1 3 Fabricators . | . . . . . Repair Stations 1 | . 1 . . . Recycling Units . | . . . . . Scanalyzers 1 | . . . 1 . Garrison Access . | . . . . . Total Hacks 22 | . 10 1 7 4 Successful 14 | . 6 1 5 2 Failed 8 | . 4 . 2 2 Catastrophic 2 | . 1 . . 1 Database Lockouts . | . . . . . Manual 3 | . . . . 3 Terminals 13 | . 6 . 3 4 Fabricators . | . . . . . Repair Stations 4 | . 4 . . . Recycling Units . | . . . . . Scanalyzers 4 | . . . 4 . Garrison Access . | . . . . . Terminal Hacks 8 | . 3 1 2 2 Open Door 3 | . . 1 . 2 Terminal Index 1 | . 1 . . . Locate Traps 1 | . . . 1 . Assault Status 1 | . 1 . . . Zone Layout 2 | . 1 . 1 . Fabricator Hacks . | . . . . . Repair Station Hacks 3 | . 3 . . . Scan Component 1 | . 1 . . . Repair 1 | . 1 . . . Refit 1 | . 1 . . . Recycling Unit Hacks . | . . . . . Scanalyzer 3 | . . . 3 . Insert Component 2 | . . . 2 . Analyze 1 | . . . 1 . Garrison Access Hacks . | . . . . . Unauthorized Hacks . | . . . . . Terminals . | . . . . . Fabricators . | . . . . . Repair Stations . | . . . . . Recycling Units . | . . . . . Scanalyzers . | . . . . . Garrison Access . | . . . . . Data Cores Recovered . | . . . . . Used . | . . . . . Hacking Detections 6 | . 3 . 2 1 Full Trace Events 2 | . 1 . 1 . Feedback Events 1 | . . . 1 . Corruption 1 | . . . 1 . Feedback Blocked . | . . . . . Robot Schematics Acquired . | . . . . . Robots Built . | . . . . . Authchips . | . . . . . Time . | . . . . . Total Robot Build Rating . | . . . . . Part Schematics Acquired 1 | . . . 1 . Parts Built . | . . . . . Authchips . | . . . . . Time . | . . . . . Total Part Build Rating . | . . . . . Parts Repaired 1 | . 1 . . . Time 26 | . 26 . . . Parts Recycled . | . . . . . Recycled Matter . | . . . . . Retrieved Matter . | . . . . . Retrieved Components . | . . . . . Parts Scanalyzed 1 | . . . 1 . Part Schematics Acquired 1 | . . . 1 . Parts Damaged 1 | . . . 1 . Bothacking | -11 -10 -10 -9 -9 ------------ Run | Yrd Mat Min Mat Sto Used RIF Installer . | . . . . . Robots Hacked . | . . . . . Non-combat . | . . . . . Combat . | . . . . . Robot Hacks Applied . | . . . . . Relay Couplers Released . | . . . . . Fabnet Peak Effective % . | . . . . . Robots Rewired . | . . . . . Allies Hacked . | . . . . . Hacks Repelled . | . . . . . Allies | -11 -10 -10 -9 -9 -------- Run | Yrd Mat Min Mat Sto Total Allies . | . . . . . Largest Group . | . . . . . Highest-Rated Group . | . . . . . Highest-Rated Ally . | . . . . . Total Orders . | . . . . . Ally Attacks . | . . . . . Total Damage . | . . . . . Kills . | . . . . . Allies Corrupted . | . . . . . Allies Melted . | . . . . . Intel | -11 -10 -10 -9 -9 ------- Run | Yrd Mat Min Mat Sto Robot Analysis Total . | . . . . . Derelict Logs Recovered 2 | . . 2 . . Drone Launches 2 | . . . . 2 Drone Recoveries 1 | . . . . 1 Exploration | -11 -10 -10 -9 -9 ------------- Run | Yrd Mat Min Mat Sto Turns Passed 4680 | 88 914 870 1091 1717 Spaces Moved 1970 | 60 426 436 404 644 Core 23 | 21 . . 2 . Treads . | . . . . . Legs 1946 | 39 425 436 402 644 Wheels . | . . . . . Hover 1 | . 1 . . . Flight . | . . . . . Fastest Speed 50 | 50 120 190 190 190 Average Speed 201 | 120 174 191 226 219 Slowest Speed 600 | 150 490 330 600 330 Overloaded Moves . | . . . . . Propulsion Burnouts . | . . . . . Robots Hopped . | . . . . . Cave-ins Triggered . | . . . . . Exploration Rate (%) 49 | 3 64 92 28 58 Regions Visited 4 Branch Regions 2 Pre-discovered Areas . | . . . . . Known Exits Taken 2 | . . 1 1 . Unknown Exits Taken 2 | 1 1 . . . Scrap Searched 1 | . . 1 . . Spaces Dug 15 | . . . . 15 Terrain Destroyed 210 | . 29 35 . 146 Melee . | . . . . . Projectile . | . . . . . AOE 210 | . 29 35 . 146 Terrain Rammed . | . . . . . Walls Destroyed . | . . . . . Machines Disabled . | . . . . . Actions | -11 -10 -10 -9 -9 --------- Run | Yrd Mat Min Mat Sto Total 2453 | 75 536 456 524 862 Wait 217 | . 41 3 41 132 Move 1966 | 59 425 435 403 644 Hop . | . . . . . Pick Up 46 | 10 17 4 8 7 Fast Attach 4 | . 2 . 2 . Attach 30 | 6 3 2 7 12 Detach 1 | . . . 1 . Swap 7 | . 3 . 3 1 Drop 22 | . 8 3 7 4 Fire 111 | . 37 9 38 27 Melee 49 | . . . 14 35 Ram . | . . . . . Kick . | . . . . . Crush . | . . . . . Escape Stasis . | . . . . . Rewire . | . . . . . Trap . | . . . . . Miscellaneous . | . . . . . Route ------- -11/Scrapyard -10/Materials (discovered 3 exits: *Mat x2 / *Min) -10/Mines (discovered 2 exits: *Mat x2) -9/Materials (discovered 2 exits: [*Mat] / *Sto) -9/Storage History --------- Turn | Location | Event 11 | -11/Scrapyard | Discovered new exit (range 16) 89 | -11/Scrapyard | Entered Materials 316 | -10/Materials | Build established: Mutant 382 | -10/Materials | Discovered new exit (range 8) 747 | -10/Materials | Discovered new exit (range 6) 784 | -10/Materials | Discovered new exit (range 15) 986 | -10/Materials | Repaired Aluminum Leg 1003 | -10/Materials | Entered Mines 1010 | -10/Mines | Received a Rocket Launcher from a helpful Derelict 1159 | -10/Mines | Found the Drone Emporium 1168 | -10/Mines | Found Prototype Device 1336 | -10/Mines | Learned location of 1 exit from Materials 1412 | -10/Mines | Identified exit to Materials 1496 | -10/Mines | Found a hidden stash of uninstalled traps 1516 | -10/Mines | Assembled infested the area 1521 | -10/Mines | Assisted by a Guerilla fighting off Assembled 1811 | -10/Mines | Discovered exit to Materials (range 3) 1873 | -10/Mines | Entered Materials 1873 | -9/Materials | Evolved 2 slots: Utility x2 1873 | -9/Materials | Identified Bomb Drone Bay 1874 | -9/Materials | Identified exit to Storage 2633 | -9/Materials | Discovered new exit (range 14) 2964 | -9/Materials | Entered Storage 3282 | -9/Storage | Core integrity fell below 50% 3951 | -9/Storage | Core integrity fell below 20% 4681 | -9/Storage | Destroyed by Y-45 Defender with Beam Rifle Last Messages --------------- Acquired 16 matter. Acquired Lgt. Ion Engine. System corrupted: Component data lost. Triggered EMP Trap. A bubble of electromagnetic force engulfs the area. Triggered EMP Trap. A bubble of electromagnetic force engulfs the area. K-01 Serf cleans the Terminal. System corrupted: Matter fused (-5). System corrupted: Lgt. Ion Engine fused. Med. Armor Plating destroyed. Aluminum Leg destroyed. Destroyed Aluminum Leg. The unstable cave ceiling collapses. Rocket Launcher destroyed. Med. Armor Plating destroyed. Y-45 Defender destroyed. The unstable cave ceiling collapses. Map ----- +----------------------------------------------------+ | | | | | | | | | | | | | | | | | | | | | | | | | | | | | | | | | | | | | | | | | ???????????????## ???????????????????????????????? | | ??????????????## #####????????????????????????? | | ?????????????## ????????????????????????? | | ?????????????# [[ ###?????????????????????? | | ?????????????# [[ ####################### | | ??????????????# [[ =Y @ | | ???????????????# [ ### ^ | | ???????????# + * ##?# | | ???????????#! # # ##??# ###########/##### | | ???????????##??#### # ###????# #??????# # | | ??????????????????#?##???????# #??????# # | | ?????????????????????????????# #??????# # | | ?????????????????????????????# #??????# # | | ?????????????????????????????# #??????# # | | ?????????????????????????????# #??????# # | | ?????????????????????????????# #??????# # | | ?????????????????????????????# #??????# + | | ?????????????????????????????# #??????# # | | ????????????????????????????? =??????####+##### | | ????????????????????????????? ?????????# #?### | | ????????????????????????????? T ?????????# #?# | | ????????????????????????????? ?????????# ### | | ?????????????????????????????? ? ??????????# ## | | ???????????????????????????????????????????# ##### | | ??????????????????????????????????????#????# | | ????????????????????????????????????? """??# | | ????????????????????????????????????? """" # | | ????????????????????????????????????? """" + | | ????????????????????????????????????? """" # #"T"# | | ????????????????????????????????????# ??# #"""# | +----------------------------------------------------+ Best States ------------- Heat Dissipation 35 Energy Generation 12 Energy Capacity 265 Matter Stores 300 Matter Capacity 300 Sight Range 16 Terrain Scan Density 85 Armor Coverage 450 Evasion (%) 55 Item Schematics ----------------- Cmb. Airjet | -9/Materials | Scanalyzed Robot Schematics ------------------ None Fabricated ------------ Nothing Alien Tech Used ----------------- None Achievements -------------- Part-time Mechanic Challenges ------------ None Game ------ Seed HelicalVisualCharger Manual? 0 Play Time 00:32:54 Cumulative 6.0 hours Start 2024.04.03 @ 19:51:12 End 2024.04.03 @ 20:23:13 Sessions 1 Manual Loads 0 Difficulty Rogue Special Mode None Game No. 13 Rogue 13 Adventurer 0 Explorer 0 Win Type - Total 0 Types 0/0/0/0/0/0/0/0/0 Lore% 9 Gallery% 11 Achievement% 11 Wizard Run 0 Options --------- Layout 1 ASCII 0 Keyboard 0 Movement Mouse Keybinds 0 Fullscreen 1 Font 32/SmallcapsGlow Map View 50x35 Zoom Use 0% Tactical HUD 0 Map Filters NONE Filters NONE Steam 1 RUN: b5ec0a79-d28e-4422-9cc1-d5fc2f0496f8